[Event "Early-Titled-Tuesday-Blitz-September-26-2023"]
[Site "Chess.com"]
[Date "2023.09.26"]
[Round "6"]
[White "meoluoi91"]
[Black "venturov"]
[Result "0-1"]
[WhiteElo "2631"]
[BlackElo "2462"]
[TimeControl "180+1"]
[EndTime "9:08:39 PDT"]
[Termination "venturov won on time"]

1. d4 {[%clk 0:02:40.4]} 1... Nf6 {[%clk 0:02:58.4]} 2. c4 {[%clk 0:02:39.8]}
2... e6 {[%clk 0:02:58.8]} 3. Nc3 {[%clk 0:02:40.3]} 3... Bb4 {[%clk 0:02:58.7]}
4. Qc2 {[%clk 0:02:40.8]} 4... c5 {[%clk 0:02:58.6]} 5. dxc5 {[%clk 0:02:39.9]}
5... O-O {[%clk 0:02:58]} 6. Bg5 {[%clk 0:02:36.4]} 6... Bxc5 {[%clk 0:02:55]}
7. e3 {[%clk 0:02:35.9]} 7... b6 {[%clk 0:02:52.9]} 8. Rd1 {[%clk 0:02:34.7]}
8... Bb7 {[%clk 0:02:47.9]} 9. Nf3 {[%clk 0:02:35.1]} 9... h6 {[%clk 0:02:46.8]}
10. Bh4 {[%clk 0:02:34.5]} 10... Be7 {[%clk 0:02:46.8]} 11. Be2 {[%clk
0:02:33.6]} 11... Nh5 {[%clk 0:02:41.7]} 12. Bxe7 {[%clk 0:02:29.6]} 12... Qxe7
{[%clk 0:02:42.6]} 13. O-O {[%clk 0:02:29.5]} 13... Nf6 {[%clk 0:02:41.8]} 14.
Nb5 {[%clk 0:02:27.2]} 14... Ne8 {[%clk 0:02:37.5]} 15. Qd2 {[%clk 0:01:38.1]}
15... d5 {[%clk 0:02:22]} 16. Ne5 {[%clk 0:01:19]} 16... a6 {[%clk 0:02:15]} 17.
Nc3 {[%clk 0:01:17.1]} 17... dxc4 {[%clk 0:02:12.7]} 18. Nxc4 {[%clk 0:01:17]}
18... b5 {[%clk 0:02:11.3]} 19. Na5 {[%clk 0:01:15.9]} 19... Bc8 {[%clk
0:01:54.2]} 20. Qd4 {[%clk 0:01:09.9]} 20... Ra7 {[%clk 0:01:50.3]} 21. a3
{[%clk 0:00:54.7]} 21... Nf6 {[%clk 0:01:44.9]} 22. Bf3 {[%clk 0:00:51]} 22...
Qc7 {[%clk 0:01:35.7]} 23. b4 {[%clk 0:00:38.9]} 23... e5 {[%clk 0:01:25]} 24.
Qd2 {[%clk 0:00:36]} 24... Be6 {[%clk 0:01:22]} 25. Rc1 {[%clk 0:00:35.6]} 25...
Qe7 {[%clk 0:01:22.1]} 26. Qb2 {[%clk 0:00:28.9]} 26... Rc7 {[%clk 0:01:19.7]}
27. Nb1 {[%clk 0:00:23.5]} 27... e4 {[%clk 0:01:19.2]} 28. Be2 {[%clk
0:00:22.4]} 28... Rfc8 {[%clk 0:01:18.6]} 29. Nd2 {[%clk 0:00:20.5]} 29... Nbd7
{[%clk 0:01:15.1]} 30. Rxc7 {[%clk 0:00:17.4]} 30... Rxc7 {[%clk 0:01:15.5]} 31.
Ndb3 {[%clk 0:00:17.2]} 31... Nd5 {[%clk 0:01:09]} 32. Nd4 {[%clk 0:00:16.7]}
32... N7b6 {[%clk 0:01:03.8]} 33. Rc1 {[%clk 0:00:15.1]} 33... Qd7 {[%clk
0:00:49.4]} 34. Bf1 {[%clk 0:00:11.2]} 34... Qc8 {[%clk 0:00:44.4]} 35. Rxc7
{[%clk 0:00:09.1]} 35... Qxc7 {[%clk 0:00:43.2]} 36. Nxe6 {[%clk 0:00:09.2]}
36... fxe6 {[%clk 0:00:44.1]} 37. Qd4 {[%clk 0:00:08.6]} 37... Nf6 {[%clk
0:00:39.2]} 38. h3 {[%clk 0:00:07.1]} 38... Nbd5 {[%clk 0:00:37.2]} 39. g3
{[%clk 0:00:05.1]} 39... h5 {[%clk 0:00:36.9]} 40. Bg2 {[%clk 0:00:03.6]} 40...
h4 {[%clk 0:00:34.1]} 41. gxh4 {[%clk 0:00:03]} 41... Qc1+ {[%clk 0:00:33.8]}
42. Bf1 {[%clk 0:00:03.1]} 42... Qxa3 {[%clk 0:00:30]} 43. Qe5 {[%clk
0:00:03.2]} 43... Kf7 {[%clk 0:00:29.3]} 44. Nb7 {[%clk 0:00:01.1]} 44... Qxb4
{[%clk 0:00:24.8]} 0-1

[Event "Early-Titled-Tuesday-Blitz-September-26-2023"]
[Site "Chess.com"]
[Date "2023.09.26"]
[Round "6"]
[White "Kopytkin"]
[Black "Staudenhocker43"]
[Result "1-0"]
[WhiteElo "2384"]
[BlackElo "2558"]
[TimeControl "180+1"]
[EndTime "9:08:40 PDT"]
[Termination "Kopytkin won by checkmate"]

1. e4 {[%clk 0:02:48.5]} 1... c6 {[%clk 0:02:59.5]} 2. d4 {[%clk 0:02:48]} 2...
d5 {[%clk 0:02:59.7]} 3. exd5 {[%clk 0:02:48.9]} 3... cxd5 {[%clk 0:02:59.6]} 4.
c4 {[%clk 0:02:49.8]} 4... Nf6 {[%clk 0:02:59.4]} 5. Nc3 {[%clk 0:02:50.3]} 5...
Nc6 {[%clk 0:02:59.8]} 6. Bg5 {[%clk 0:02:49.5]} 6... dxc4 {[%clk 0:02:58.9]} 7.
Bxc4 {[%clk 0:02:43.3]} 7... h6 {[%clk 0:02:57.9]} 8. Bxf6 {[%clk 0:02:38.5]}
8... exf6 {[%clk 0:02:58.8]} 9. Nf3 {[%clk 0:02:30.8]} 9... Bd6 {[%clk
0:02:58.2]} 10. h3 {[%clk 0:02:27.8]} 10... Qe7+ {[%clk 0:02:47.7]} 11. Qe2
{[%clk 0:02:27.8]} 11... Qxe2+ {[%clk 0:02:47.3]} 12. Bxe2 {[%clk 0:02:26.7]}
12... Bf5 {[%clk 0:02:42.1]} 13. O-O {[%clk 0:02:26.6]} 13... O-O-O {[%clk
0:02:38.4]} 14. a3 {[%clk 0:02:19.3]} 14... Kb8 {[%clk 0:02:35.1]} 15. Rad1
{[%clk 0:02:11.5]} 15... Rhe8 {[%clk 0:02:32.2]} 16. Bd3 {[%clk 0:02:10.8]}
16... Bxd3 {[%clk 0:02:29.7]} 17. Rxd3 {[%clk 0:02:10.5]} 17... f5 {[%clk
0:02:27.6]} 18. Rfd1 {[%clk 0:02:06.6]} 18... a6 {[%clk 0:02:23.6]} 19. Kf1
{[%clk 0:02:00.3]} 19... g6 {[%clk 0:02:20.6]} 20. Re1 {[%clk 0:01:44.3]} 20...
Na5 {[%clk 0:02:14.8]} 21. Rxe8 {[%clk 0:01:41.1]} 21... Rxe8 {[%clk 0:02:15.7]}
22. Nd2 {[%clk 0:01:25.1]} 22... b5 {[%clk 0:02:01.6]} 23. b4 {[%clk 0:01:21.2]}
23... Nc6 {[%clk 0:01:52.5]} 24. Nf3 {[%clk 0:01:16.9]} 24... Kb7 {[%clk
0:01:46.3]} 25. Nd2 {[%clk 0:01:08.9]} 25... Rd8 {[%clk 0:01:31.6]} 26. Nb3
{[%clk 0:01:08.8]} 26... Be7 {[%clk 0:01:29.8]} 27. Ne2 {[%clk 0:00:47]} 27...
Kb6 {[%clk 0:01:22.7]} 28. f4 {[%clk 0:00:35.3]} 28... a5 {[%clk 0:01:13.5]} 29.
bxa5+ {[%clk 0:00:21.3]} 29... Nxa5 {[%clk 0:01:14.4]} 30. Nxa5 {[%clk
0:00:20.5]} 30... Kxa5 {[%clk 0:01:15.3]} 31. Nc3 {[%clk 0:00:16.8]} 31... Bf6
{[%clk 0:01:13]} 32. Ne2 {[%clk 0:00:15.3]} 32... Rd5 {[%clk 0:01:09.2]} 33. Kf2
{[%clk 0:00:15.5]} 33... g5 {[%clk 0:01:03.8]} 34. g3 {[%clk 0:00:15]} 34... Bg7
{[%clk 0:01:03.2]} 35. Ke3 {[%clk 0:00:14.9]} 35... Rd7 {[%clk 0:00:59.8]} 36.
Rb3 {[%clk 0:00:14.8]} 36... Re7+ {[%clk 0:00:56]} 37. Kd3 {[%clk 0:00:15.1]}
37... Rd7 {[%clk 0:00:48.8]} 38. Rc3 {[%clk 0:00:14.7]} 38... Ka4 {[%clk
0:00:47.9]} 39. Rc5 {[%clk 0:00:13.8]} 39... gxf4 {[%clk 0:00:46.6]} 40. gxf4
{[%clk 0:00:13.6]} 40... Kxa3 {[%clk 0:00:34.3]} 41. Rxb5 {[%clk 0:00:13]} 41...
Rd6 {[%clk 0:00:23.8]} 42. Rxf5 {[%clk 0:00:09.9]} 42... Bf6 {[%clk 0:00:24]}
43. Rb5 {[%clk 0:00:09.7]} 43... Ka4 {[%clk 0:00:20.5]} 44. Nc3+ {[%clk
0:00:09]} 44... Ka3 {[%clk 0:00:20.7]} 45. Kc2 {[%clk 0:00:09.6]} 45... Bxd4
{[%clk 0:00:14.2]} 46. Rb3# {[%clk 0:00:09.6]} 1-0

[Event "Early-Titled-Tuesday-Blitz-September-26-2023"]
[Site "Chess.com"]
[Date "2023.09.26"]
[Round "6"]
[White "Antik5"]
[Black "noblerone"]
[Result "1-0"]
[WhiteElo "2389"]
[BlackElo "2488"]
[TimeControl "180+1"]
[EndTime "9:08:43 PDT"]
[Termination "Antik5 won on time"]

1. c4 {[%clk 0:03:00.9]} 1... c6 {[%clk 0:02:53.8]} 2. d4 {[%clk 0:03:00.3]}
2... d5 {[%clk 0:02:54.7]} 3. Nc3 {[%clk 0:03:00.2]} 3... Nf6 {[%clk 0:02:55.1]}
4. Nf3 {[%clk 0:03:00]} 4... dxc4 {[%clk 0:02:54.9]} 5. a4 {[%clk 0:02:59.2]}
5... Bf5 {[%clk 0:02:54.8]} 6. Nh4 {[%clk 0:02:57.1]} 6... Bd7 {[%clk
0:02:48.7]} 7. e4 {[%clk 0:02:56.3]} 7... b5 {[%clk 0:02:47.5]} 8. Be2 {[%clk
0:02:40.6]} 8... b4 {[%clk 0:02:40.6]} 9. Nb1 {[%clk 0:02:37.1]} 9... Nxe4
{[%clk 0:02:39.2]} 10. Bxc4 {[%clk 0:02:16.2]} 10... e6 {[%clk 0:02:09.3]} 11.
Nf3 {[%clk 0:02:15.2]} 11... Bd6 {[%clk 0:02:05.5]} 12. O-O {[%clk 0:01:59]}
12... O-O {[%clk 0:01:54.6]} 13. Re1 {[%clk 0:01:58.5]} 13... Nf6 {[%clk
0:01:53.2]} 14. Bg5 {[%clk 0:01:52.2]} 14... Be7 {[%clk 0:01:50.7]} 15. Nbd2
{[%clk 0:01:38.4]} 15... c5 {[%clk 0:01:43]} 16. dxc5 {[%clk 0:01:35.9]} 16...
Bxc5 {[%clk 0:01:41.4]} 17. Ne5 {[%clk 0:01:05.8]} 17... Bc6 {[%clk 0:00:57]}
18. Nxc6 {[%clk 0:01:02.8]} 18... Nxc6 {[%clk 0:00:56.3]} 19. Nb3 {[%clk
0:00:49.6]} 19... Be7 {[%clk 0:00:53.8]} 20. Bb5 {[%clk 0:00:31.2]} 20... Na5
{[%clk 0:00:36.1]} 21. Nd4 {[%clk 0:00:22.7]} 21... Qd5 {[%clk 0:00:29.5]} 22.
Nf3 {[%clk 0:00:17.2]} 22... Rad8 {[%clk 0:00:26.6]} 23. Qe2 {[%clk 0:00:17.5]}
23... Qf5 {[%clk 0:00:24.9]} 24. Rad1 {[%clk 0:00:13.5]} 24... h6 {[%clk
0:00:24.5]} 25. Bh4 {[%clk 0:00:13.1]} 25... Nb3 {[%clk 0:00:20.4]} 26. h3
{[%clk 0:00:08.8]} 26... a5 {[%clk 0:00:18.6]} 27. Rd3 {[%clk 0:00:08.1]} 27...
Nc5 {[%clk 0:00:17.9]} 28. Re3 {[%clk 0:00:06.9]} 28... Nb7 {[%clk 0:00:13.9]}
29. Re5 {[%clk 0:00:06.9]} 29... Qg6 {[%clk 0:00:12.3]} 30. Bd3 {[%clk
0:00:05.6]} 30... Qxd3 {[%clk 0:00:07.8]} 31. Rb5 {[%clk 0:00:02.8]} 31... Qxe2
{[%clk 0:00:07.5]} 32. Rxe2 {[%clk 0:00:03.7]} 32... Nd6 {[%clk 0:00:05.2]} 33.
Rxa5 {[%clk 0:00:04.2]} 33... Nc4 {[%clk 0:00:04.6]} 34. Ra6 {[%clk 0:00:03.8]}
34... Rd1+ {[%clk 0:00:04.8]} 35. Kh2 {[%clk 0:00:03.6]} 35... Bd6+ {[%clk
0:00:05.3]} 36. g3 {[%clk 0:00:02.8]} 36... Bc5 {[%clk 0:00:04.4]} 37. Kg2
{[%clk 0:00:02.2]} 37... Nd5 {[%clk 0:00:03.8]} 38. Rc6 {[%clk 0:00:01.9]} 38...
Bxf2 {[%clk 0:00:01.3]} 39. Rxc4 {[%clk 0:00:01.7]} 1-0

[Event "Early-Titled-Tuesday-Blitz-September-26-2023"]
[Site "Chess.com"]
[Date "2023.09.26"]
[Round "6"]
[White "luizzy"]
[Black "ARMQUEEN"]
[Result "1-0"]
[WhiteElo "2638"]
[BlackElo "2440"]
[TimeControl "180+1"]
[EndTime "9:08:44 PDT"]
[Termination "luizzy won by resignation"]

1. b3 {[%clk 0:03:00.9]} 1... e5 {[%clk 0:02:57.7]} 2. Bb2 {[%clk 0:03:01.5]}
2... d6 {[%clk 0:02:58]} 3. e3 {[%clk 0:03:02]} 3... Nc6 {[%clk 0:02:56.8]} 4.
Bb5 {[%clk 0:03:01.7]} 4... Bd7 {[%clk 0:02:54.8]} 5. Nf3 {[%clk 0:02:58.6]}
5... Nf6 {[%clk 0:02:53.1]} 6. d4 {[%clk 0:02:57.3]} 6... e4 {[%clk 0:02:52.2]}
7. Nfd2 {[%clk 0:02:57.2]} 7... d5 {[%clk 0:02:51.7]} 8. h3 {[%clk 0:02:53.6]}
8... a6 {[%clk 0:02:50.5]} 9. Be2 {[%clk 0:02:53.7]} 9... Ne7 {[%clk 0:02:49.7]}
10. c4 {[%clk 0:02:41.4]} 10... c6 {[%clk 0:02:48.8]} 11. f3 {[%clk 0:02:38.5]}
11... Bf5 {[%clk 0:02:40.4]} 12. Nc3 {[%clk 0:02:27.3]} 12... exf3 {[%clk
0:02:34.3]} 13. Bxf3 {[%clk 0:02:26]} 13... Qd6 {[%clk 0:02:29.4]} 14. O-O
{[%clk 0:02:19.5]} 14... Ng6 {[%clk 0:02:28.8]} 15. e4 {[%clk 0:01:47.1]} 15...
dxe4 {[%clk 0:02:23.5]} 16. Ndxe4 {[%clk 0:01:48]} 16... Nxe4 {[%clk 0:02:17.6]}
17. Nxe4 {[%clk 0:01:46]} 17... Qd7 {[%clk 0:02:16.3]} 18. Ng3 {[%clk
0:01:26.1]} 18... Bxh3 {[%clk 0:01:57]} 19. gxh3 {[%clk 0:01:17]} 19... Qxh3
{[%clk 0:01:54.8]} 20. Qe1+ {[%clk 0:01:08.6]} 20... Be7 {[%clk 0:01:53.5]} 21.
Bg2 {[%clk 0:01:07.5]} 21... Qg4 {[%clk 0:01:52.3]} 22. Nf5 {[%clk 0:01:03.6]}
22... O-O-O {[%clk 0:01:19.6]} 23. Nxe7+ {[%clk 0:01:00.7]} 23... Nxe7 {[%clk
0:01:20.5]} 24. Qxe7 {[%clk 0:01:01]} 24... Rde8 {[%clk 0:01:20.4]} 25. Qxf7
{[%clk 0:00:51.4]} 25... Re2 {[%clk 0:01:19.9]} 26. Rf2 {[%clk 0:00:31.6]} 26...
Rhe8 {[%clk 0:01:00.2]} 27. Raf1 {[%clk 0:00:31.9]} 27... Kb8 {[%clk 0:00:52.7]}
28. Qf3 {[%clk 0:00:16.4]} 28... Qxf3 {[%clk 0:00:47]} 29. Bxf3 {[%clk
0:00:17.3]} 29... R2e6 {[%clk 0:00:46.3]} 30. Rg2 {[%clk 0:00:16]} 30... g6
{[%clk 0:00:45.6]} 31. d5 {[%clk 0:00:16.4]} 31... cxd5 {[%clk 0:00:43.6]} 32.
cxd5 {[%clk 0:00:17.3]} 32... Re3 {[%clk 0:00:42.1]} 33. d6 {[%clk 0:00:17]}
33... Rd3 {[%clk 0:00:40.9]} 34. Ba3 {[%clk 0:00:11.8]} 34... Rd8 {[%clk
0:00:25.9]} 35. Re2 {[%clk 0:00:12]} 35... g5 {[%clk 0:00:21]} 36. Re7 {[%clk
0:00:12.3]} 36... g4 {[%clk 0:00:20]} 37. Rxb7+ {[%clk 0:00:12.7]} 37... Kc8
{[%clk 0:00:19.3]} 38. Rc7+ {[%clk 0:00:09.8]} 38... Kb8 {[%clk 0:00:18.9]} 39.
Bg2 {[%clk 0:00:09.4]} 39... h5 {[%clk 0:00:17.2]} 40. Rb7+ {[%clk 0:00:09.5]}
40... Kc8 {[%clk 0:00:09]} 41. Rc1+ {[%clk 0:00:08.9]} 1-0

[Event "Early-Titled-Tuesday-Blitz-September-26-2023"]
[Site "Chess.com"]
[Date "2023.09.26"]
[Round "6"]
[White "AsaHoffmann"]
[Black "Bilan_Danila"]
[Result "0-1"]
[WhiteElo "2406"]
[BlackElo "2527"]
[TimeControl "180+1"]
[EndTime "9:08:44 PDT"]
[Termination "Bilan_Danila won on time"]

1. d4 {[%clk 0:02:58.7]} 1... d5 {[%clk 0:02:59.5]} 2. Bg5 {[%clk 0:02:57.5]}
2... c5 {[%clk 0:02:59]} 3. dxc5 {[%clk 0:02:56.1]} 3... Qa5+ {[%clk 0:02:49]}
4. Nc3 {[%clk 0:02:50.8]} 4... e6 {[%clk 0:02:48.8]} 5. e4 {[%clk 0:02:46.8]}
5... Bxc5 {[%clk 0:02:25.9]} 6. exd5 {[%clk 0:02:43.3]} 6... Nf6 {[%clk
0:01:54.7]} 7. Bxf6 {[%clk 0:02:10.2]} 7... gxf6 {[%clk 0:01:55.6]} 8. Bb5+
{[%clk 0:02:06.7]} 8... Bd7 {[%clk 0:01:45.5]} 9. Bxd7+ {[%clk 0:02:05.8]} 9...
Nxd7 {[%clk 0:01:46.4]} 10. dxe6 {[%clk 0:02:04]} 10... fxe6 {[%clk 0:01:39.6]}
11. Qf3 {[%clk 0:01:38.8]} 11... O-O-O {[%clk 0:01:28.4]} 12. Ne2 {[%clk
0:01:37.1]} 12... f5 {[%clk 0:00:48.8]} 13. O-O-O {[%clk 0:01:28.5]} 13... Ne5
{[%clk 0:00:40.9]} 14. Qg3 {[%clk 0:01:17.5]} 14... Ng4 {[%clk 0:00:39.5]} 15.
Rxd8+ {[%clk 0:01:06.3]} 15... Rxd8 {[%clk 0:00:38.6]} 16. f3 {[%clk 0:00:55.6]}
16... Bf2 {[%clk 0:00:26.3]} 17. Qh3 {[%clk 0:00:51]} 17... Be3+ {[%clk
0:00:26.6]} 18. Kb1 {[%clk 0:00:50.6]} 18... Nf2 {[%clk 0:00:27.3]} 19. Qxh7
{[%clk 0:00:43.9]} 19... Nxh1 {[%clk 0:00:27.5]} 20. Qf7 {[%clk 0:00:42.4]}
20... Qe5 {[%clk 0:00:20.3]} 21. a4 {[%clk 0:00:33.8]} 21... Nf2 {[%clk
0:00:19.8]} 22. h4 {[%clk 0:00:31.9]} 22... Nd1 {[%clk 0:00:18.6]} 23. h5 {[%clk
0:00:25.5]} 23... Nxc3+ {[%clk 0:00:15.1]} 24. Nxc3 {[%clk 0:00:25.6]} 24... Bd4
{[%clk 0:00:14.1]} 25. Nb5 {[%clk 0:00:23.8]} 25... a6 {[%clk 0:00:14.2]} 26.
Nxd4 {[%clk 0:00:20.1]} 26... Rxd4 {[%clk 0:00:15.1]} 27. c3 {[%clk 0:00:14.4]}
27... Rd1+ {[%clk 0:00:13.6]} 28. Kc2 {[%clk 0:00:14.4]} 28... Qe2+ {[%clk
0:00:13.3]} 29. Kb3 {[%clk 0:00:14.6]} 29... Rd7 {[%clk 0:00:11.8]} 30. Qf8+
{[%clk 0:00:09.2]} 30... Kc7 {[%clk 0:00:11.6]} 31. Qc5+ {[%clk 0:00:07.8]}
31... Kb8 {[%clk 0:00:11.1]} 32. Qf8+ {[%clk 0:00:06.8]} 32... Ka7 {[%clk
0:00:11.5]} 33. Qc5+ {[%clk 0:00:06.2]} 33... b6 {[%clk 0:00:11.9]} 34. Qc6
{[%clk 0:00:05.9]} 34... Qd1+ {[%clk 0:00:09.3]} 35. Ka3 {[%clk 0:00:05.3]}
35... Qd6+ {[%clk 0:00:09.1]} 36. Qxd6 {[%clk 0:00:04.5]} 36... Rxd6 {[%clk
0:00:10]} 37. g4 {[%clk 0:00:04.7]} 37... fxg4 {[%clk 0:00:09.5]} 38. fxg4
{[%clk 0:00:04.9]} 38... Rd1 {[%clk 0:00:07.3]} 39. g5 {[%clk 0:00:02.3]} 39...
Rh1 {[%clk 0:00:04.9]} 0-1

[Event "Early-Titled-Tuesday-Blitz-September-26-2023"]
[Site "Chess.com"]
[Date "2023.09.26"]
[Round "6"]
[White "Shockerlover"]
[Black "Ariadna_Atreides"]
[Result "0-1"]
[WhiteElo "1981"]
[BlackElo "2196"]
[TimeControl "180+1"]
[EndTime "9:08:44 PDT"]
[Termination "Ariadna_Atreides won on time"]

1. d4 {[%clk 0:02:50.3]} 1... Nf6 {[%clk 0:02:58.4]} 2. Nf3 {[%clk 0:02:49.3]}
2... e6 {[%clk 0:02:57.4]} 3. g3 {[%clk 0:02:48.3]} 3... b6 {[%clk 0:02:54.4]}
4. Bg2 {[%clk 0:02:47.5]} 4... Bb7 {[%clk 0:02:54.7]} 5. O-O {[%clk 0:02:46]}
5... Be7 {[%clk 0:02:54.2]} 6. c4 {[%clk 0:02:45.7]} 6... O-O {[%clk 0:02:52.8]}
7. Nc3 {[%clk 0:02:46.1]} 7... a5 {[%clk 0:02:49]} 8. d5 {[%clk 0:02:44.7]} 8...
d6 {[%clk 0:02:47.3]} 9. e4 {[%clk 0:02:43.9]} 9... e5 {[%clk 0:02:47.1]} 10.
Ne1 {[%clk 0:02:33.8]} 10... Na6 {[%clk 0:02:43]} 11. f4 {[%clk 0:02:29.1]}
11... exf4 {[%clk 0:02:42.8]} 12. Bxf4 {[%clk 0:02:25.7]} 12... Nd7 {[%clk
0:02:37.6]} 13. Nd3 {[%clk 0:02:20.9]} 13... Nac5 {[%clk 0:02:37]} 14. Bh3
{[%clk 0:01:57.3]} 14... Nxd3 {[%clk 0:02:31.4]} 15. Qxd3 {[%clk 0:01:56.6]}
15... Nc5 {[%clk 0:02:32.3]} 16. Qe2 {[%clk 0:01:54.1]} 16... Bf6 {[%clk
0:02:31.5]} 17. Bf5 {[%clk 0:01:47.6]} 17... Re8 {[%clk 0:02:24.2]} 18. Rae1
{[%clk 0:01:44.6]} 18... Bc8 {[%clk 0:02:20.6]} 19. Bd2 {[%clk 0:01:28.6]} 19...
Re5 {[%clk 0:01:51.1]} 20. Qg4 {[%clk 0:01:25.8]} 20... Bxf5 {[%clk 0:01:49.4]}
21. Rxf5 {[%clk 0:01:24]} 21... Rxf5 {[%clk 0:01:47.3]} 22. exf5 {[%clk
0:01:18.7]} 22... Nd3 {[%clk 0:01:44.4]} 23. Re2 {[%clk 0:01:10.4]} 23... Nxb2
{[%clk 0:01:27]} 24. Ne4 {[%clk 0:01:06.2]} 24... Bd4+ {[%clk 0:01:24.5]} 25.
Kg2 {[%clk 0:01:05.5]} 25... Nxc4 {[%clk 0:01:21.3]} 26. Ng5 {[%clk 0:00:52.2]}
26... Nxd2 {[%clk 0:01:14.9]} 27. Nxf7 {[%clk 0:00:33.2]} 27... Kxf7 {[%clk
0:01:10.8]} 28. Qxd4 {[%clk 0:00:29.9]} 28... Nb1 {[%clk 0:00:43.3]} 29. Qe4
{[%clk 0:00:19.3]} 29... Nc3 {[%clk 0:00:38.8]} 30. Qe6+ {[%clk 0:00:19.2]}
30... Kf8 {[%clk 0:00:39.3]} 31. Rc2 {[%clk 0:00:15.8]} 31... Nb5 {[%clk
0:00:34.8]} 32. f6 {[%clk 0:00:12.2]} 32... g6 {[%clk 0:00:16.3]} 33. f7 {[%clk
0:00:09]} 33... Nd4 {[%clk 0:00:14.7]} 34. Qe4 {[%clk 0:00:01.3]} 34... Nxc2
{[%clk 0:00:13.4]} 35. Qxc2 {[%clk 0:00:01.9]} 35... Qe7 {[%clk 0:00:13.1]} 36.
Qc6 {[%clk 0:00:02.2]} 36... Qxf7 {[%clk 0:00:12.7]} 37. Qxa8+ {[%clk
0:00:02.1]} 37... Qe8 {[%clk 0:00:13.2]} 38. Qc6 {[%clk 0:00:02.1]} 38... Qxc6
{[%clk 0:00:12.9]} 39. dxc6 {[%clk 0:00:01.4]} 39... d5 {[%clk 0:00:13.2]} 0-1

[Event "Early-Titled-Tuesday-Blitz-September-26-2023"]
[Site "Chess.com"]
[Date "2023.09.26"]
[Round "6"]
[White "HATilay"]
[Black "ChessQueen"]
[Result "1-0"]
[WhiteElo "2581"]
[BlackElo "2717"]
[TimeControl "180+1"]
[EndTime "9:08:45 PDT"]
[Termination "HATilay won by checkmate"]

1. d4 {[%clk 0:03:00.9]} 1... Nf6 {[%clk 0:02:58.7]} 2. c4 {[%clk 0:02:58.1]}
2... e6 {[%clk 0:02:59.1]} 3. Nc3 {[%clk 0:02:56.2]} 3... Bb4 {[%clk 0:02:57.9]}
4. e3 {[%clk 0:02:55.9]} 4... b6 {[%clk 0:02:57.8]} 5. Ne2 {[%clk 0:02:54.8]}
5... Ne4 {[%clk 0:02:56.8]} 6. Qc2 {[%clk 0:02:52.4]} 6... Bb7 {[%clk
0:02:55.9]} 7. a3 {[%clk 0:02:51.2]} 7... Bxc3+ {[%clk 0:02:53.9]} 8. Nxc3
{[%clk 0:02:52.1]} 8... Nxc3 {[%clk 0:02:53.9]} 9. Qxc3 {[%clk 0:02:51.7]} 9...
d6 {[%clk 0:02:54.4]} 10. b3 {[%clk 0:02:45.6]} 10... Nd7 {[%clk 0:02:52]} 11.
Bb2 {[%clk 0:02:45.2]} 11... Qh4 {[%clk 0:02:47.4]} 12. Qd2 {[%clk 0:02:32.4]}
12... a5 {[%clk 0:02:40.8]} 13. O-O-O {[%clk 0:02:30.1]} 13... O-O-O {[%clk
0:02:10.7]} 14. f3 {[%clk 0:02:29.4]} 14... f5 {[%clk 0:02:07]} 15. b4 {[%clk
0:02:23.2]} 15... axb4 {[%clk 0:02:03.9]} 16. axb4 {[%clk 0:02:14.2]} 16... Nf6
{[%clk 0:01:57.2]} 17. Bd3 {[%clk 0:02:12.4]} 17... Qh6 {[%clk 0:01:52.6]} 18.
Kb1 {[%clk 0:02:07.8]} 18... Rde8 {[%clk 0:01:39.2]} 19. Rc1 {[%clk 0:02:06.9]}
19... Kd7 {[%clk 0:01:35.3]} 20. c5 {[%clk 0:01:42.5]} 20... bxc5 {[%clk
0:01:35]} 21. dxc5 {[%clk 0:01:27.2]} 21... Bd5 {[%clk 0:01:02.9]} 22. cxd6
{[%clk 0:01:24.1]} 22... c6 {[%clk 0:00:56]} 23. Bc4 {[%clk 0:01:12.1]} 23...
Rb8 {[%clk 0:00:49.6]} 24. Qd4 {[%clk 0:00:26.4]} 24... Rb7 {[%clk 0:00:33.6]}
25. Bxd5 {[%clk 0:00:23.5]} 25... Nxd5 {[%clk 0:00:32.5]} 26. e4 {[%clk
0:00:23.8]} 26... Nxb4 {[%clk 0:00:29.8]} 27. exf5 {[%clk 0:00:20.7]} 27... Rhb8
{[%clk 0:00:26.9]} 28. Rhe1 {[%clk 0:00:18.1]} 28... Nd5 {[%clk 0:00:23.6]} 29.
fxe6+ {[%clk 0:00:17.6]} 29... Kxd6 {[%clk 0:00:22.9]} 30. Qc5+ {[%clk
0:00:16.9]} 30... Kc7 {[%clk 0:00:21.8]} 31. Qxc6+ {[%clk 0:00:14.6]} 31... Kd8
{[%clk 0:00:22.1]} 32. Qxd5+ {[%clk 0:00:12.8]} 32... Ke7 {[%clk 0:00:22.1]} 33.
Qc5+ {[%clk 0:00:11]} 33... Ke8 {[%clk 0:00:22.3]} 34. Rc2 {[%clk 0:00:09.8]}
34... Qf6 {[%clk 0:00:20.6]} 35. Qe5 {[%clk 0:00:07]} 35... Qg6 {[%clk
0:00:18.7]} 36. Re4 {[%clk 0:00:07.2]} 36... Rb5 {[%clk 0:00:10]} 37. Qd6 {[%clk
0:00:06.9]} 37... R8b7 {[%clk 0:00:09.9]} 38. e7 {[%clk 0:00:06.5]} 38... Qxd6
{[%clk 0:00:06.2]} 39. Rc8+ {[%clk 0:00:06.9]} 39... Kd7 {[%clk 0:00:03.8]} 40.
e8=Q# {[%clk 0:00:07.1]} 1-0